[Event "*** SCC Grand Prix: Titled Tuesday Blitz"]
[Site "Chess.com"]
[Date "2020.06.02"]
[Round "9"]
[White "beto-betun"]
[Black "diablanni"]
[Result "0-1"]
[WhiteElo "2166"]
[BlackElo "2340"]
[TimeControl "180+1"]
[EndTime "11:47:20 PDT"]
[Termination "diablanni won on time"]

1. d4 {[%clk 0:03:00.9]} 1... Nf6 {[%clk 0:02:59.6]} 2. Nf3 {[%clk 0:03:00.9]}
2... e6 {[%clk 0:02:59]} 3. g3 {[%clk 0:03:00.8]} 3... b5 {[%clk 0:02:58.1]} 4.
Bg2 {[%clk 0:03:00.7]} 4... Bb7 {[%clk 0:02:57.6]} 5. O-O {[%clk 0:03:00.6]}
5... c5 {[%clk 0:02:58]} 6. e3 {[%clk 0:02:54.8]} 6... Be7 {[%clk 0:02:56.7]} 7.
b3 {[%clk 0:02:44.9]} 7... Na6 {[%clk 0:02:53.9]} 8. Bb2 {[%clk 0:02:41.5]} 8...
O-O {[%clk 0:02:53.2]} 9. Nbd2 {[%clk 0:02:41.6]} 9... Rc8 {[%clk 0:02:50]} 10.
c3 {[%clk 0:02:38.9]} 10... c4 {[%clk 0:02:48.4]} 11. Re1 {[%clk 0:02:24.4]}
11... b4 {[%clk 0:02:41]} 12. bxc4 {[%clk 0:01:57.5]} 12... bxc3 {[%clk
0:02:39.6]} 13. Bxc3 {[%clk 0:01:58.4]} 13... Ne4 {[%clk 0:02:38.9]} 14. Nxe4
{[%clk 0:01:58]} 14... Bxe4 {[%clk 0:02:38.3]} 15. Nd2 {[%clk 0:01:58.3]} 15...
Bxg2 {[%clk 0:02:37.4]} 16. Kxg2 {[%clk 0:01:59.2]} 16... Qc7 {[%clk 0:02:34.6]}
17. Rc1 {[%clk 0:01:56.5]} 17... Qc6+ {[%clk 0:02:28.2]} 18. Qf3 {[%clk
0:01:53.4]} 18... Qa4 {[%clk 0:02:24.7]} 19. Qb7 {[%clk 0:01:32.2]} 19... Rc7
{[%clk 0:02:23.5]} 20. Qb3 {[%clk 0:01:29.2]} 20... Qc6+ {[%clk 0:02:19.8]} 21.
f3 {[%clk 0:01:28.5]} 21... Rb8 {[%clk 0:02:19.8]} 22. Qc2 {[%clk 0:01:26.9]}
22... Nb4 {[%clk 0:02:15.1]} 23. Bxb4 {[%clk 0:01:26.2]} 23... Bxb4 {[%clk
0:02:13]} 24. Rb1 {[%clk 0:01:23.3]} 24... Rcb7 {[%clk 0:02:12.9]} 25. Red1
{[%clk 0:01:17.7]} 25... Qa6 {[%clk 0:01:51.6]} 26. Rb3 {[%clk 0:01:04.1]} 26...
g6 {[%clk 0:01:45.9]} 27. Ne4 {[%clk 0:00:58.7]} 27... d5 {[%clk 0:01:21.3]} 28.
Nd2 {[%clk 0:00:46.4]} 28... Bxd2 {[%clk 0:01:18.4]} 29. Rxd2 {[%clk 0:00:44.7]}
29... dxc4 {[%clk 0:01:17.8]} 30. Rc3 {[%clk 0:00:41.3]} 30... Rc8 {[%clk
0:01:15.8]} 31. Rd1 {[%clk 0:00:39.4]} 31... Rb4 {[%clk 0:01:07.3]} 32. Rc1
{[%clk 0:00:39.3]} 32... Ra4 {[%clk 0:01:03.9]} 33. Qd2 {[%clk 0:00:36.6]} 33...
Rxa2 {[%clk 0:01:00.4]} 34. R1c2 {[%clk 0:00:36.9]} 34... Rxc2 {[%clk
0:01:00.6]} 35. Qxc2 {[%clk 0:00:36.9]} 35... Qb5 {[%clk 0:01:00.8]} 36. Kf2
{[%clk 0:00:35.3]} 36... a5 {[%clk 0:01:00.5]} 37. Ke2 {[%clk 0:00:35.1]} 37...
Qb4 {[%clk 0:00:59.4]} 38. e4 {[%clk 0:00:26.9]} 38... a4 {[%clk 0:00:56.7]} 39.
Kd2 {[%clk 0:00:21.6]} 39... a3 {[%clk 0:00:56.2]} 40. Qa2 {[%clk 0:00:19.8]}
40... Ra8 {[%clk 0:00:51.9]} 41. Kc2 {[%clk 0:00:18.3]} 41... Qa4+ {[%clk
0:00:32]} 42. Kd2 {[%clk 0:00:18.2]} 42... Rd8 {[%clk 0:00:29.6]} 43. Rxc4
{[%clk 0:00:15.8]} 43... Rxd4+ {[%clk 0:00:28.7]} 44. Rxd4 {[%clk 0:00:14.6]}
44... Qxd4+ {[%clk 0:00:29]} 45. Ke2 {[%clk 0:00:14.6]} 45... Qb2+ {[%clk
0:00:29]} 0-1

[Event "*** SCC Grand Prix: Titled Tuesday Blitz"]
[Site "Chess.com"]
[Date "2020.06.02"]
[Round "9"]
[White "Parhamov"]
[Black "SergeyKarjakin"]
[Result "1/2-1/2"]
[WhiteElo "3085"]
[BlackElo "2975"]
[TimeControl "180+1"]
[EndTime "11:47:24 PDT"]
[Termination "Game drawn by agreement"]

1. e4 {[%clk 0:03:00.9]} 1... e5 {[%clk 0:02:59.3]} 2. Nf3 {[%clk 0:03:00.9]}
2... Nc6 {[%clk 0:02:59.9]} 3. Bb5 {[%clk 0:03:01.4]} 3... Nf6 {[%clk
0:03:00.3]} 4. O-O {[%clk 0:03:00.7]} 4... Nxe4 {[%clk 0:03:00.2]} 5. d4 {[%clk
0:03:00.6]} 5... Nd6 {[%clk 0:03:00.8]} 6. Bxc6 {[%clk 0:03:00.7]} 6... dxc6
{[%clk 0:03:01.7]} 7. dxe5 {[%clk 0:03:01.5]} 7... Nf5 {[%clk 0:03:02.3]} 8.
Qxd8+ {[%clk 0:03:01.6]} 8... Kxd8 {[%clk 0:03:03.2]} 9. h3 {[%clk 0:03:01.6]}
9... Ke8 {[%clk 0:03:03.1]} 10. Re1 {[%clk 0:02:58.4]} 10... h5 {[%clk
0:03:01.8]} 11. Nc3 {[%clk 0:02:58.6]} 11... Be7 {[%clk 0:02:59.6]} 12. Bg5
{[%clk 0:02:57.5]} 12... Be6 {[%clk 0:02:48.2]} 13. Rad1 {[%clk 0:02:57.4]}
13... Rd8 {[%clk 0:02:35.6]} 14. Rxd8+ {[%clk 0:02:55]} 14... Kxd8 {[%clk
0:02:36.5]} 15. a3 {[%clk 0:02:50.3]} 15... b6 {[%clk 0:02:33.5]} 16. Ne2 {[%clk
0:02:47.7]} 16... Bd5 {[%clk 0:02:19.7]} 17. Bxe7+ {[%clk 0:02:46.9]} 17... Kxe7
{[%clk 0:02:20.6]} 18. Ng5 {[%clk 0:02:47.2]} 18... Rh6 {[%clk 0:01:57]} 19. Nf4
{[%clk 0:02:46.7]} 19... Nd4 {[%clk 0:01:56.6]} 20. c3 {[%clk 0:02:44]} 20...
Ne6 {[%clk 0:01:54.2]} 21. Ngxe6 {[%clk 0:02:44.3]} 21... Bxe6 {[%clk
0:01:55.1]} 22. h4 {[%clk 0:02:42.9]} 22... Rh8 {[%clk 0:01:52.4]} 23. Rd1
{[%clk 0:02:42.3]} 23... g6 {[%clk 0:01:51.5]} 24. f3 {[%clk 0:02:41.8]} 24...
a5 {[%clk 0:01:49.9]} 25. Kf2 {[%clk 0:02:41.8]} 25... a4 {[%clk 0:01:39.2]} 26.
Ke3 {[%clk 0:02:41.7]} 26... c5 {[%clk 0:01:38.7]} 27. g3 {[%clk 0:02:41.8]}
27... Ra8 {[%clk 0:01:36.8]} 28. Rd2 {[%clk 0:02:41.9]} 28... Rh8 {[%clk
0:01:34.1]} 29. Ke4 {[%clk 0:02:37.7]} 29... Bf5+ {[%clk 0:01:33]} 30. Ke3
{[%clk 0:02:37.4]} 30... Be6 {[%clk 0:01:33.3]} 31. Nxe6 {[%clk 0:02:23.3]}
31... Kxe6 {[%clk 0:01:33.2]} 32. Ke4 {[%clk 0:02:23.5]} 32... Re8 {[%clk
0:01:25.7]} 33. g4 {[%clk 0:02:22.5]} 33... Rh8 {[%clk 0:01:21]} 34. g5 {[%clk
0:02:17.1]} 34... Ra8 {[%clk 0:01:19.6]} 35. f4 {[%clk 0:02:17.1]} 35... c4
{[%clk 0:00:54.7]} 36. Rf2 {[%clk 0:02:12.7]} 36... Ra5 {[%clk 0:00:50]} 37. f5+
{[%clk 0:02:12.4]} 37... gxf5+ {[%clk 0:00:49.6]} 38. Rxf5 {[%clk 0:02:13.3]}
38... Rb5 {[%clk 0:00:45.8]} 39. Rf6+ {[%clk 0:02:13.1]} 39... Ke7 {[%clk
0:00:46]} 40. Rc6 {[%clk 0:02:12.3]} 40... Rxb2 {[%clk 0:00:45.8]} 41. Rxc7+
{[%clk 0:02:12.1]} 41... Ke6 {[%clk 0:00:45.6]} 42. Rc6+ {[%clk 0:02:12.2]}
42... Ke7 {[%clk 0:00:45.2]} 43. Rxc4 {[%clk 0:02:12.3]} 43... b5 {[%clk
0:00:45.1]} 44. Rc6 {[%clk 0:02:11.9]} 44... Ra2 {[%clk 0:00:40.5]} 45. Rh6
{[%clk 0:02:07.9]} 45... Rxa3 {[%clk 0:00:39.8]} 46. Kd4 {[%clk 0:02:06.5]}
46... Ra1 {[%clk 0:00:38.3]} 47. Kc5 {[%clk 0:02:04.5]} 47... a3 {[%clk
0:00:35.8]} 48. Kb4 {[%clk 0:02:03.4]} 48... a2 {[%clk 0:00:31.5]} 49. Kb3
{[%clk 0:02:03.5]} 49... Rh1 {[%clk 0:00:31]} 50. Kxa2 {[%clk 0:01:59]} 50...
Rxh4 {[%clk 0:00:31.5]} 51. Kb3 {[%clk 0:01:56.6]} 51... Re4 {[%clk 0:00:20.4]}
52. Rxh5 {[%clk 0:01:56.1]} 52... Rxe5 {[%clk 0:00:20.8]} 53. Kb4 {[%clk
0:01:55.3]} 53... Rf5 {[%clk 0:00:15.5]} 54. Ka5 {[%clk 0:01:53.5]} 54... Kf8
{[%clk 0:00:12.3]} 55. Rh8+ {[%clk 0:01:50.1]} 55... Kg7 {[%clk 0:00:11.9]} 56.
Rb8 {[%clk 0:01:39.5]} 56... Rxg5 {[%clk 0:00:10.8]} 57. Rxb5 {[%clk 0:01:39.5]}
57... Rg4 {[%clk 0:00:11.2]} 58. Rb4 {[%clk 0:01:38.7]} 58... f5 {[%clk
0:00:07.8]} 59. c4 {[%clk 0:01:38.9]} 59... f4 {[%clk 0:00:05.9]} 60. c5 {[%clk
0:01:39]} 60... Rg5 {[%clk 0:00:06.1]} 61. Rxf4 {[%clk 0:01:38.8]} 61... Rxc5+
{[%clk 0:00:05.5]} 62. Kb4 {[%clk 0:01:39.3]} 62... Rg5 {[%clk 0:00:04.7]}
1/2-1/2

[Event "*** SCC Grand Prix: Titled Tuesday Blitz"]
[Site "Chess.com"]
[Date "2020.06.02"]
[Round "9"]
[White "MFguimaraes"]
[Black "Titus369"]
[Result "0-1"]
[WhiteElo "2424"]
[BlackElo "2566"]
[TimeControl "180+1"]
[EndTime "11:47:25 PDT"]
[Termination "Titus369 won by resignation"]

1. e4 {[%clk 0:03:00.9]} 1... c5 {[%clk 0:02:58]} 2. Nf3 {[%clk 0:03:00.8]} 2...
d6 {[%clk 0:02:58.1]} 3. Bb5+ {[%clk 0:02:59.9]} 3... Nd7 {[%clk 0:02:57.6]} 4.
c3 {[%clk 0:02:58.8]} 4... Nf6 {[%clk 0:02:56.2]} 5. d3 {[%clk 0:02:57.8]} 5...
a6 {[%clk 0:02:54.8]} 6. Ba4 {[%clk 0:02:57.8]} 6... b5 {[%clk 0:02:54.6]} 7.
Bc2 {[%clk 0:02:57.6]} 7... Bb7 {[%clk 0:02:55.2]} 8. O-O {[%clk 0:02:57.4]}
8... e6 {[%clk 0:02:46.8]} 9. a4 {[%clk 0:02:56.4]} 9... Be7 {[%clk 0:02:39.2]}
10. Na3 {[%clk 0:02:55.9]} 10... b4 {[%clk 0:02:35.9]} 11. Nc4 {[%clk
0:02:55.4]} 11... d5 {[%clk 0:02:35.1]} 12. exd5 {[%clk 0:02:27.2]} 12... exd5
{[%clk 0:02:33.6]} 13. Nce5 {[%clk 0:02:26.5]} 13... O-O {[%clk 0:02:27.6]} 14.
d4 {[%clk 0:02:26.2]} 14... cxd4 {[%clk 0:02:20]} 15. cxd4 {[%clk 0:02:23.7]}
15... Nb6 {[%clk 0:02:11.8]} 16. b3 {[%clk 0:02:17.8]} 16... Nc8 {[%clk
0:02:11.3]} 17. Bg5 {[%clk 0:02:12.3]} 17... Nd6 {[%clk 0:02:08.5]} 18. Qd3
{[%clk 0:01:59.3]} 18... g6 {[%clk 0:02:03]} 19. Rfe1 {[%clk 0:01:55.2]} 19...
Rc8 {[%clk 0:02:01.6]} 20. Rac1 {[%clk 0:01:53.2]} 20... Nfe4 {[%clk 0:01:53.8]}
21. Bxe7 {[%clk 0:01:38.9]} 21... Qxe7 {[%clk 0:01:54.7]} 22. Nd2 {[%clk
0:01:32.4]} 22... Qg5 {[%clk 0:01:44.6]} 23. Nxe4 {[%clk 0:01:25.2]} 23... Nxe4
{[%clk 0:01:34.9]} 24. Qe3 {[%clk 0:01:19.4]} 24... Qxe3 {[%clk 0:01:34]} 25.
fxe3 {[%clk 0:01:20.3]} 25... Nc3 {[%clk 0:01:29.4]} 26. a5 {[%clk 0:01:12]}
26... Rc7 {[%clk 0:01:27.4]} 27. Nd3 {[%clk 0:01:11.8]} 27... Na2 {[%clk
0:01:25.2]} 28. Nc5 {[%clk 0:01:07.5]} 28... Nxc1 {[%clk 0:01:25.1]} 29. Rxc1
{[%clk 0:01:07.2]} 29... Bc8 {[%clk 0:01:25.7]} 30. Re1 {[%clk 0:01:03.3]} 30...
Re8 {[%clk 0:01:25.1]} 31. Kf2 {[%clk 0:01:03]} 31... Rc6 {[%clk 0:01:24.2]} 32.
Bd3 {[%clk 0:01:03]} 32... Re7 {[%clk 0:01:20.8]} 33. h3 {[%clk 0:01:01.9]}
33... Rec7 {[%clk 0:01:21.1]} 34. Ra1 {[%clk 0:00:56.3]} 34... Rxc5 {[%clk
0:01:16.4]} 35. dxc5 {[%clk 0:00:57.2]} 35... Rxc5 {[%clk 0:01:17.2]} 36. Ke2
{[%clk 0:00:31]} 36... Rc3 {[%clk 0:01:13.9]} 37. Rb1 {[%clk 0:00:20.7]} 37...
Kf8 {[%clk 0:01:12]} 38. Rb2 {[%clk 0:00:19.7]} 38... Ke7 {[%clk 0:01:11.9]} 39.
Kd2 {[%clk 0:00:19.9]} 39... Kd6 {[%clk 0:01:11.5]} 40. Rc2 {[%clk 0:00:16]}
40... Rxc2+ {[%clk 0:01:11.2]} 41. Kxc2 {[%clk 0:00:14.4]} 41... Bf5 {[%clk
0:01:01.8]} 42. Bxf5 {[%clk 0:00:14.1]} 42... gxf5 {[%clk 0:01:02.7]} 43. Kd3
{[%clk 0:00:14.6]} 43... Ke5 {[%clk 0:01:03.1]} 44. g3 {[%clk 0:00:14.4]} 44...
h5 {[%clk 0:00:57.6]} 45. h4 {[%clk 0:00:14]} 45... f6 {[%clk 0:00:58]} 46. Kd2
{[%clk 0:00:13.8]} 46... Ke4 {[%clk 0:00:58.2]} 47. Ke2 {[%clk 0:00:14.4]} 47...
d4 {[%clk 0:00:58.5]} 48. exd4 {[%clk 0:00:15.3]} 48... Kxd4 {[%clk 0:00:59.4]}
49. Kd2 {[%clk 0:00:15.4]} 49... f4 {[%clk 0:00:59.8]} 50. gxf4 {[%clk
0:00:15.4]} 50... f5 {[%clk 0:00:59.4]} 51. Ke2 {[%clk 0:00:06.3]} 51... Ke4
{[%clk 0:00:52.1]} 52. Kd2 {[%clk 0:00:05.1]} 52... Kxf4 {[%clk 0:00:52.6]} 53.
Kd3 {[%clk 0:00:06]} 53... Kg3 {[%clk 0:00:52.6]} 54. Kc4 {[%clk 0:00:06.9]}
54... f4 {[%clk 0:00:53.1]} 55. Kxb4 {[%clk 0:00:07.8]} 55... f3 {[%clk
0:00:53.8]} 56. Kc5 {[%clk 0:00:08.7]} 56... f2 {[%clk 0:00:54.4]} 57. Kb6
{[%clk 0:00:09.2]} 57... f1=Q {[%clk 0:00:54.7]} 58. b4 {[%clk 0:00:09.4]} 58...
Qb5+ {[%clk 0:00:55.1]} 59. Ka7 {[%clk 0:00:10.3]} 59... Kf4 {[%clk 0:00:53.6]}
0-1

[Event "*** SCC Grand Prix: Titled Tuesday Blitz"]
[Site "Chess.com"]
[Date "2020.06.02"]
[Round "9"]
[White "Justinz"]
[Black "TheNextLevelFan"]
[Result "1-0"]
[WhiteElo "2340"]
[BlackElo "2437"]
[TimeControl "180+1"]
[EndTime "11:47:25 PDT"]
[Termination "Justinz won on time"]

1. e4 {[%clk 0:02:57.5]} 1... e5 {[%clk 0:02:59.9]} 2. Nf3 {[%clk 0:02:56.7]}
2... Nc6 {[%clk 0:03:00.1]} 3. Nc3 {[%clk 0:02:54.7]} 3... Nf6 {[%clk
0:02:59.5]} 4. Bb5 {[%clk 0:02:54.5]} 4... d6 {[%clk 0:02:56.3]} 5. d4 {[%clk
0:02:53.6]} 5... exd4 {[%clk 0:02:56]} 6. Nxd4 {[%clk 0:02:53.1]} 6... Bd7
{[%clk 0:02:56.5]} 7. O-O {[%clk 0:02:51.8]} 7... Be7 {[%clk 0:02:56.1]} 8. Bf4
{[%clk 0:02:50.8]} 8... O-O {[%clk 0:02:54.4]} 9. Nxc6 {[%clk 0:02:50.8]} 9...
bxc6 {[%clk 0:02:54.2]} 10. Bc4 {[%clk 0:02:47.2]} 10... Ng4 {[%clk 0:02:15.9]}
11. Bg3 {[%clk 0:02:29.5]} 11... Rb8 {[%clk 0:02:11.6]} 12. Bb3 {[%clk
0:02:28.3]} 12... Bh4 {[%clk 0:01:47.5]} 13. Bxh4 {[%clk 0:01:59.9]} 13... Qxh4
{[%clk 0:01:47.2]} 14. h3 {[%clk 0:01:59]} 14... Ne5 {[%clk 0:01:46.4]} 15. Qe2
{[%clk 0:01:53.4]} 15... Ng6 {[%clk 0:01:35.5]} 16. Qe3 {[%clk 0:01:46.2]} 16...
Kh8 {[%clk 0:01:33.7]} 17. f4 {[%clk 0:01:43.7]} 17... f5 {[%clk 0:01:26.1]} 18.
e5 {[%clk 0:01:17.9]} 18... Rbe8 {[%clk 0:01:15.2]} 19. Qxa7 {[%clk 0:01:13.5]}
19... dxe5 {[%clk 0:01:08]} 20. Qxc7 {[%clk 0:01:12.1]} 20... Re7 {[%clk
0:01:08.3]} 21. Qd6 {[%clk 0:01:06.9]} 21... Nxf4 {[%clk 0:01:02.6]} 22. Rf3
{[%clk 0:01:06.3]} 22... Rfe8 {[%clk 0:00:42.5]} 23. a4 {[%clk 0:01:00.9]} 23...
Qg5 {[%clk 0:00:37.3]} 24. g3 {[%clk 0:00:33.9]} 24... Nxh3+ {[%clk 0:00:37]}
25. Kg2 {[%clk 0:00:32.6]} 25... f4 {[%clk 0:00:37.3]} 26. Ne4 {[%clk
0:00:26.6]} 26... Qh5 {[%clk 0:00:32.8]} 27. Rh1 {[%clk 0:00:24.8]} 27... Bg4
{[%clk 0:00:32.2]} 28. Rff1 {[%clk 0:00:06.2]} 28... f3+ {[%clk 0:00:30.9]} 29.
Kh2 {[%clk 0:00:06.4]} 29... Rd7 {[%clk 0:00:30.2]} 30. Qb4 {[%clk 0:00:04.3]}
30... Nf4+ {[%clk 0:00:28.2]} 31. Kg1 {[%clk 0:00:04.3]} 31... Nh3+ {[%clk
0:00:22.4]} 32. Kh2 {[%clk 0:00:04.5]} 32... f2 {[%clk 0:00:20]} 33. Nxf2 {[%clk
0:00:03.8]} 33... Nxf2+ {[%clk 0:00:19.6]} 34. Kg2 {[%clk 0:00:04.2]} 34... Bf3+
{[%clk 0:00:04.3]} 35. Kxf2 {[%clk 0:00:03.7]} 35... Bxh1 {[%clk 0:00:04.6]} 36.
Kg1 {[%clk 0:00:04]} 1-0

[Event "*** SCC Grand Prix: Titled Tuesday Blitz"]
[Site "Chess.com"]
[Date "2020.06.02"]
[Round "9"]
[White "kleopl"]
[Black "GMJustin"]
[Result "0-1"]
[WhiteElo "2445"]
[BlackElo "2304"]
[TimeControl "180+1"]
[EndTime "11:47:25 PDT"]
[Termination "GMJustin won by resignation"]

1. c4 {[%clk 0:03:00.9]} 1... e5 {[%clk 0:02:51.3]} 2. Nc3 {[%clk 0:03:00.5]}
2... Nc6 {[%clk 0:02:51.2]} 3. Nf3 {[%clk 0:03:00.6]} 3... g6 {[%clk 0:02:50.3]}
4. d4 {[%clk 0:02:58.9]} 4... exd4 {[%clk 0:02:49.6]} 5. Nxd4 {[%clk 0:02:59.8]}
5... Bg7 {[%clk 0:02:49.7]} 6. Nxc6 {[%clk 0:02:58.7]} 6... bxc6 {[%clk
0:02:48.9]} 7. e4 {[%clk 0:02:58.4]} 7... d6 {[%clk 0:01:58]} 8. Bd3 {[%clk
0:02:56.3]} 8... Ne7 {[%clk 0:01:56.9]} 9. O-O {[%clk 0:02:55.3]} 9... c5 {[%clk
0:01:53]} 10. Qc2 {[%clk 0:02:51.5]} 10... O-O {[%clk 0:01:51.5]} 11. b3 {[%clk
0:02:48.3]} 11... Nc6 {[%clk 0:01:50.2]} 12. Bb2 {[%clk 0:02:48.5]} 12... Nb4
{[%clk 0:01:26.3]} 13. Qe2 {[%clk 0:02:45.9]} 13... Nxd3 {[%clk 0:01:17.1]} 14.
Qxd3 {[%clk 0:02:46]} 14... Be6 {[%clk 0:01:17.3]} 15. Rad1 {[%clk 0:02:42.8]}
15... f5 {[%clk 0:01:14.7]} 16. exf5 {[%clk 0:02:41.3]} 16... Bxf5 {[%clk
0:01:14.3]} 17. Qd2 {[%clk 0:02:37.5]} 17... Bg4 {[%clk 0:01:00]} 18. f3 {[%clk
0:02:35]} 18... Bd4+ {[%clk 0:00:54.2]} 19. Kh1 {[%clk 0:02:34.9]} 19... Bf5
{[%clk 0:00:52.5]} 20. Nd5 {[%clk 0:02:31.6]} 20... Bxb2 {[%clk 0:00:42.2]} 21.
Qxb2 {[%clk 0:02:32.5]} 21... Be6 {[%clk 0:00:41.9]} 22. Nc3 {[%clk 0:02:25.8]}
22... Qf6 {[%clk 0:00:37.6]} 23. Rfe1 {[%clk 0:02:21.8]} 23... Bf5 {[%clk
0:00:30.4]} 24. Qd2 {[%clk 0:02:17.6]} 24... Rae8 {[%clk 0:00:25.2]} 25. Nd5
{[%clk 0:02:17.5]} 25... Qd8 {[%clk 0:00:22]} 26. Rxe8 {[%clk 0:02:11.5]} 26...
Rxe8 {[%clk 0:00:21.8]} 27. Re1 {[%clk 0:02:11.1]} 27... Rxe1+ {[%clk
0:00:19.7]} 28. Qxe1 {[%clk 0:02:12]} 28... Kf7 {[%clk 0:00:19.6]} 29. h3 {[%clk
0:02:04.8]} 29... c6 {[%clk 0:00:18.9]} 30. Ne3 {[%clk 0:02:03]} 30... Be6
{[%clk 0:00:18.6]} 31. Qc3 {[%clk 0:01:59.4]} 31... Qf6 {[%clk 0:00:16.6]} 32.
Qd2 {[%clk 0:01:56.8]} 32... Qd4 {[%clk 0:00:15.6]} 33. Qe2 {[%clk 0:01:43.7]}
33... d5 {[%clk 0:00:15.5]} 34. g4 {[%clk 0:01:33.5]} 34... Qe5 {[%clk
0:00:14.3]} 35. Qf2 {[%clk 0:01:26.5]} 35... d4 {[%clk 0:00:13.4]} 36. Nc2
{[%clk 0:01:22.5]} 36... d3 {[%clk 0:00:13.3]} 37. Ne1 {[%clk 0:01:19.5]} 37...
Qc3 {[%clk 0:00:12.6]} 38. Qe3 {[%clk 0:01:16.1]} 38... a5 {[%clk 0:00:05.5]}
39. Kg2 {[%clk 0:01:12]} 39... Qb2+ {[%clk 0:00:03.7]} 40. Qf2 {[%clk 0:01:07]}
40... Qxf2+ {[%clk 0:00:03.3]} 41. Kxf2 {[%clk 0:01:07.2]} 41... d2 {[%clk
0:00:03.7]} 42. Ke2 {[%clk 0:01:06.9]} 42... dxe1=R+ {[%clk 0:00:03.2]} 43. Kxe1
{[%clk 0:01:07.8]} 43... a4 {[%clk 0:00:03.3]} 44. Kd2 {[%clk 0:01:05.7]} 44...
axb3 {[%clk 0:00:03.4]} 45. axb3 {[%clk 0:01:06.5]} 45... g5 {[%clk 0:00:03.7]}
46. Ke3 {[%clk 0:01:06.3]} 46... Kf6 {[%clk 0:00:03.7]} 47. f4 {[%clk
0:01:03.9]} 47... gxf4+ {[%clk 0:00:03.8]} 48. Kxf4 {[%clk 0:01:04.8]} 48... h6
{[%clk 0:00:04]} 49. h4 {[%clk 0:01:04.6]} 49... Bd7 {[%clk 0:00:04.1]} 50. g5+
{[%clk 0:01:02.8]} 50... hxg5+ {[%clk 0:00:04]} 51. hxg5+ {[%clk 0:01:03.7]}
51... Ke6 {[%clk 0:00:04.3]} 52. Ke4 {[%clk 0:01:00]} 52... Be8 {[%clk
0:00:04.5]} 53. Kd3 {[%clk 0:00:58.9]} 53... Bg6+ {[%clk 0:00:04.3]} 54. Kc3
{[%clk 0:00:59.1]} 54... Ke5 {[%clk 0:00:04.2]} 55. b4 {[%clk 0:00:59.5]} 55...
cxb4+ {[%clk 0:00:03.9]} 56. Kxb4 {[%clk 0:01:00.4]} 56... Kd4 {[%clk
0:00:04.2]} 57. Kb3 {[%clk 0:01:00.9]} 57... c5 {[%clk 0:00:04.4]} 58. Kb2
{[%clk 0:00:59.6]} 58... Kxc4 {[%clk 0:00:04.6]} 59. Kc1 {[%clk 0:00:59.7]}
59... Kd4 {[%clk 0:00:05]} 60. Kd2 {[%clk 0:00:59.7]} 60... c4 {[%clk
0:00:05.4]} 61. Kd1 {[%clk 0:01:00]} 61... c3 {[%clk 0:00:05.8]} 62. Ke1 {[%clk
0:01:00]} 62... Kd3 {[%clk 0:00:06.1]} 63. Kd1 {[%clk 0:01:00.3]} 63... c2+
{[%clk 0:00:06.5]} 64. Kc1 {[%clk 0:01:00.8]} 64... Bf5 {[%clk 0:00:06.7]} 0-1

[Event "*** SCC Grand Prix: Titled Tuesday Blitz"]
[Site "Chess.com"]
[Date "2020.06.02"]
[Round "9"]
[White "antoszu"]
[Black "Aguiar94"]
[Result "0-1"]
[WhiteElo "2523"]
[BlackElo "2430"]
[TimeControl "180+1"]
[EndTime "11:47:26 PDT"]
[Termination "Aguiar94 won by resignation"]

1. e4 {[%clk 0:03:00.9]} 1... c5 {[%clk 0:02:59.6]} 2. Nf3 {[%clk 0:03:00.7]}
2... e6 {[%clk 0:02:59.5]} 3. d4 {[%clk 0:03:00.8]} 3... cxd4 {[%clk 0:03:00.4]}
4. Nxd4 {[%clk 0:03:01.7]} 4... Nc6 {[%clk 0:03:00.4]} 5. Nc3 {[%clk 0:02:56.7]}
5... Qc7 {[%clk 0:03:00.1]} 6. Be3 {[%clk 0:02:55]} 6... a6 {[%clk 0:03:00]} 7.
Be2 {[%clk 0:02:55.3]} 7... Nf6 {[%clk 0:03:00.1]} 8. O-O {[%clk 0:02:55]} 8...
Bb4 {[%clk 0:02:59.4]} 9. Na4 {[%clk 0:02:54.4]} 9... O-O {[%clk 0:02:58.9]} 10.
Nxc6 {[%clk 0:02:52.6]} 10... bxc6 {[%clk 0:02:59.8]} 11. Nb6 {[%clk 0:02:53.1]}
11... Rb8 {[%clk 0:03:00.2]} 12. Nxc8 {[%clk 0:02:53.1]} 12... Rfxc8 {[%clk
0:03:01.1]} 13. Bd3 {[%clk 0:02:53]} 13... Bd6 {[%clk 0:02:59.9]} 14. f4 {[%clk
0:02:50.9]} 14... e5 {[%clk 0:03:00.3]} 15. f5 {[%clk 0:02:35.3]} 15... Rxb2
{[%clk 0:02:59.9]} 16. g4 {[%clk 0:02:27.2]} 16... h6 {[%clk 0:02:56.4]} 17. Kh1
{[%clk 0:02:19.6]} 17... Bf8 {[%clk 0:02:47.8]} 18. g5 {[%clk 0:02:16.8]} 18...
hxg5 {[%clk 0:02:46.8]} 19. Bxg5 {[%clk 0:02:17.7]} 19... Be7 {[%clk 0:02:40.4]}
20. Rg1 {[%clk 0:01:51.5]} 20... d5 {[%clk 0:02:36.7]} 21. Bh6 {[%clk
0:01:49.6]} 21... Bf8 {[%clk 0:02:24]} 22. Qc1 {[%clk 0:01:48.4]} 22... dxe4
{[%clk 0:01:50.1]} 23. Qxb2 {[%clk 0:00:52.8]} 23... exd3 {[%clk 0:01:47.3]} 24.
cxd3 {[%clk 0:00:53.7]} 24... Qd6 {[%clk 0:01:20.6]} 25. Qg2 {[%clk 0:00:46.6]}
25... Ne8 {[%clk 0:01:20.1]} 26. f6 {[%clk 0:00:30.8]} 26... Qxf6 {[%clk
0:01:15.1]} 27. Be3 {[%clk 0:00:29.3]} 27... Qd6 {[%clk 0:01:11.6]} 28. Raf1
{[%clk 0:00:28.7]} 28... Qxd3 {[%clk 0:01:07.3]} 29. Rf3 {[%clk 0:00:25.2]}
29... Qd5 {[%clk 0:01:05.6]} 30. h4 {[%clk 0:00:22.9]} 30... Rb8 {[%clk
0:00:59.6]} 31. Kh2 {[%clk 0:00:19.9]} 31... Rb4 {[%clk 0:00:59.7]} 32. Bf2
{[%clk 0:00:18]} 32... Kh8 {[%clk 0:00:53.8]} 33. Qg3 {[%clk 0:00:14.9]} 33...
Ra4 {[%clk 0:00:40.2]} 34. Rf5 {[%clk 0:00:14.8]} 34... Rxa2 {[%clk 0:00:38.3]}
35. Rg2 {[%clk 0:00:11.8]} 35... Bd6 {[%clk 0:00:27.7]} 36. Kh3 {[%clk
0:00:09.3]} 36... Ra3 {[%clk 0:00:26.7]} 37. Be3 {[%clk 0:00:07.7]} 37... Qe6
{[%clk 0:00:20.1]} 38. Rf2 {[%clk 0:00:04.4]} 38... g6 {[%clk 0:00:18.1]} 39.
Kg2 {[%clk 0:00:01.8]} 39... gxf5 {[%clk 0:00:16.3]} 0-1